fUSD/lending_fUSD_20240101
["ID","MTS","AMOUNT","RATE_DAILY","PERIOD"]
[309782694,1704117061809,-500.0,0.00036438,2]
[309782695,1704117061820,-179.12,0.00036438,2]
[309782696,1704117061832,-500.0,0.00036438,2]
[309782697,1704117061844,-500.0,0.00036438,2]
[309782698,1704117061854,-628.8,0.00036438,2]
[309782699,1704117061864,-500.0,0.00036438,2]
[309782700,1704117061874,-543.03,0.00036438,2]
[309782701,1704117061883,-500.0,0.00036438,2]
[309782702,1704117061893,-418.56,0.00036438,2]
[309782703,1704117061903,-752.72,0.00036438,2]
[309782704,1704117061913,-500.0,0.00036438,2]
[309782705,1704117061922,-500.0,0.00036438,2]
[309782706,1704117061931,-500.0,0.00036438,2]
[309782707,1704117061941,-500.0,0.00036438,2]
[309782708,1704117061952,-500.0,0.00036438,2]
[309782709,1704117061962,-171.55,0.00036438,2]
[309782710,1704117061971,-500.0,0.00036438,2]
[309782711,1704117061981,-500.0,0.00036438,2]
[309782712,1704117061990,-500.0,0.00036438,2]
[309782713,1704117062000,-500.0,0.00036438,2]
[309782714,1704117062010,-500.0,0.00036438,2]
[309782715,1704117062019,-169.5,0.00036438,2]
[309782716,1704117062030,-500.0,0.00036438,2]
[309782717,1704117062039,-500.0,0.00036438,2]
[309782718,1704117062049,-300.26018625,0.00036438,2]
[309782719,1704117062059,-500.0,0.00036438,2]
[309782720,1704117062069,-500.0,0.00036438,2]
[309782721,1704117062079,-500.0,0.00036438,2]
[309782722,1704117062088,-500.0,0.00036438,2]
[309782723,1704117062098,-539.83,0.00036438,2]
[309782724,1704117062107,-500.0,0.00036438,2]
[309782725,1704117062117,-500.0,0.00036438,2]
[309782726,1704117062128,-468.32,0.00036438,2]
[309782727,1704117062138,-527.61,0.00036438,2]
[309782728,1704117062147,-223.4,0.00036438,2]
[309782729,1704117062157,-732.99,0.00036438,2]
[309782730,1704117062167,-500.0,0.00036438,2]
[309782731,1704117062177,-500.0,0.00036438,2]
[309782732,1704117062187,-193.99,0.00036438,2]
[309782733,1704117062196,-506.62,0.00036438,2]
[309782734,1704117062206,-500.0,0.00036438,2]
[309782735,1704117062215,-500.0,0.00036438,2]
[309782736,1704117062224,-500.0,0.00036438,2]
[309782737,1704117062234,-500.0,0.00036438,2]
[309782738,1704117062243,-500.0,0.00036438,2]
[309782739,1704117062253,-500.0,0.00036438,2]
[309782740,1704117062262,-500.0,0.00036438,2]
[309782741,1704117062271,-500.0,0.00036438,2]
[309782742,1704117062281,-500.0,0.00036438,2]
[309782743,1704117062289,-1348.23,0.00036438,2]
[309782744,1704117062299,-192.45,0.00036438,2]
[309782745,1704117062309,-500.0,0.00036438,2]
[309782746,1704117062318,-500.0,0.00036438,2]
[309782747,1704117062327,-500.0,0.00036438,2]
[309782748,1704117062337,-500.0,0.00036438,2]
[309782749,1704117062346,-500.0,0.00036438,5]
[309782750,1704117062356,-500.0,0.00036438,2]
[309782751,1704117062365,-500.0,0.00036438,2]
[309782752,1704117062374,-500.0,0.00036438,2]
[309782753,1704117062383,-500.0,0.00036438,2]
[309782754,1704117062393,-601.44,0.00036438,2]
[309782755,1704117062402,-169.42,0.00036438,2]
[309782756,1704117062412,-500.0,0.00036438,2]
[309782757,1704117062421,-500.0,0.00036438,2]
[309782758,1704117062430,-500.0,0.00036438,2]
[309782759,1704117062440,-500.0,0.00036438,2]
[309782760,1704117062450,-500.0,0.00036438,2]
[309782761,1704117062459,-1292.27,0.00036438,2]
[309782762,1704117062469,-518.93,0.00036438,2]
[309782763,1704117062479,-500.0,0.00036438,2]
[309782764,1704117062488,-170.2,0.00036438,2]
[309782765,1704117062498,-500.0,0.00036438,2]
[309782766,1704117062507,-500.0,0.00036438,2]
[309782767,1704117062516,-500.0,0.00036438,2]
[309782768,1704117062526,-277.8,0.00036438,2]
[309782769,1704117062536,-500.0,0.00036438,2]
[309782770,1704117062545,-500.0,0.00036438,2]
[309782771,1704117062554,-500.0,0.00036438,2]
[309782772,1704117062565,-294.51798002,0.00036442,7]
[309782773,1704117062575,-222.22222,0.00036498,4]
[309782774,1704117062585,-635.72,0.00036553,2]
[309782775,1704117062597,-853.674,0.00036595,2]
[309782776,1704117062606,-687.537,0.00036595,2]
[309782777,1704117062615,-388.0,0.00036595,2]
[309782778,1704117062624,-1386.8,0.00036595,2]
[309782779,1704117062634,-942.0,0.00036595,2]
[309782780,1704117062643,-1845.0,0.00036595,2]
[309782781,1704117062652,-192.7,0.00036595,2]
[309782782,1704117062662,-1256.0,0.00036595,2]
[309782783,1704117062672,-315.888,0.00036595,2]
[309782784,1704117062681,-534.981,0.00036595,2]
[309782785,1704117062690,-709.521,0.00036595,2]
[309782786,1704117062700,-992.0,0.00036595,2]
[309782787,1704117062709,-1138.0,0.00036595,2]
[309782788,1704117062719,-505.0,0.00036595,2]
[309782789,1704117062728,-317.0,0.00036595,2]
[309782790,1704117062737,-234.0,0.00036595,2]
[309782791,1704117062747,-751.0,0.00036595,2]
[309782792,1704117062756,-423.0,0.00036595,2]
[309782793,1704117062766,-150.0,0.00036595,2]
[309782794,1704117062778,-2263.0,0.00036595,2]
[309782795,1704117062787,-2892.0,0.00036595,2]
[309782796,1704117062796,-16901.884,0.00036595,2]
[309782797,1704117062805,-534.382,0.00036595,2]
[309782798,1704117062814,-5550.0,0.00036595,2]
[309782799,1704117062824,-150.0,0.00036595,2]
[309782800,1704117062836,-5114.12,0.00036595,2]
[309782801,1704117062847,-4183.0,0.00036595,2]
[309782802,1704117062857,-150.0,0.00036595,2]
[309782803,1704117062867,-150.0,0.00036595,2]
[309782804,1704117062878,-222.22222,0.00036598,4]
[309782805,1704117062888,-688.42287971,0.00036641,4]
[309782806,1704117062898,-5132.56283437,0.00036677,9]
[309782807,1704117062908,-222.22222,0.00036698,4]
[309782808,1704117062918,-1000.0,0.000367,2]
[309782809,1704117062928,-170.37564968,0.00036701,4]
[309782810,1704117062937,-500.0,0.00036712,2]
[309782811,1704117062947,-500.0,0.00036712,2]
[309782812,1704117062957,-500.0,0.00036712,2]
[309782813,1704117062967,-500.0,0.00036712,2]
[309782814,1704117062978,-763.87,0.00036712,2]
[309782815,1704117062988,-638.97,0.00036712,2]
[309782816,1704117062998,-500.0,0.00036712,2]
[309782817,1704117063009,-500.0,0.00036712,2]
[309782818,1704117063018,-180.94,0.00036712,2]
[309782819,1704117063028,-500.0,0.00036712,2]
[309782820,1704117063039,-1870.25,0.00036712,2]
[309782821,1704117063049,-499.14,0.00036712,2]
[309782822,1704117063058,-500.0,0.00036712,2]
[309782823,1704117063068,-500.0,0.00036712,2]
[309782824,1704117063078,-500.0,0.00036712,2]
[309782825,1704117063089,-500.0,0.00036712,2]
[309782826,1704117063099,-500.0,0.00036712,2]
[309782827,1704117063109,-500.0,0.00036712,2]
[309782828,1704117063119,-500.0,0.00036712,2]
[309782829,1704117063129,-500.0,0.00036712,2]
[309782830,1704117063139,-500.0,0.00036712,2]
[309782831,1704117063149,-543.03,0.00036712,2]
[309782832,1704117063159,-500.0,0.00036712,2]
[309782833,1704117063169,-752.72,0.00036712,2]
[309782834,1704117063178,-500.0,0.00036712,2]
[309782835,1704117063187,-500.0,0.00036712,2]
[309782836,1704117063197,-500.0,0.00036712,2]
[309782837,1704117063207,-500.0,0.00036712,2]
[309782838,1704117063217,-500.0,0.00036712,2]
[309782839,1704117063227,-500.0,0.00036712,2]
[309782840,1704117063236,-500.0,0.00036712,2]
[309782841,1704117063246,-500.0,0.00036712,2]
[309782842,1704117063257,-500.0,0.00036712,2]
[309782843,1704117063267,-500.0,0.00036712,2]
[309782844,1704117063281,-500.0,0.00036712,2]
[309782845,1704117063292,-500.0,0.00036712,2]
[309782846,1704117063306,-500.0,0.00036712,2]
[309782847,1704117063318,-500.0,0.00036712,2]
[309782848,1704117063329,-500.0,0.00036712,2]
[309782849,1704117063342,-280.11,0.00036712,2]
[309782850,1704117063352,-374.95,0.00036712,2]
[309782851,1704117063364,-500.0,0.00036712,2]
[309782852,1704117063376,-732.99,0.00036712,2]
[309782853,1704117063388,-500.0,0.00036712,2]
[309782854,1704117063399,-403.67,0.00036712,2]
[309782855,1704117063411,-500.0,0.00036712,2]
[309782856,1704117063422,-300.9,0.00036712,2]
[309782857,1704117063433,-500.0,0.00036712,2]
[309782858,1704117063444,-500.0,0.00036712,2]
[309782859,1704117063454,-500.0,0.00036712,2]
[309782860,1704117063463,-500.0,0.00036712,2]
[309782861,1704117063476,-334.9,0.00036712,2]
[309782862,1704117063485,-500.0,0.00036712,2]
[309782863,1704117063495,-500.0,0.00036712,2]
[309782864,1704117063505,-1348.23,0.00036712,2]
[309782865,1704117063516,-500.0,0.00036712,2]
[309782866,1704117063525,-500.0,0.00036712,2]
[309782867,1704117063534,-500.0,0.00036712,2]
[309782868,1704117063543,-500.0,0.00036712,2]
[309782869,1704117063553,-500.0,0.00036712,5]
[309782870,1704117063564,-500.0,0.00036712,2]
[309782871,1704117063576,-500.0,0.00036712,2]
[309782872,1704117063585,-500.0,0.00036712,2]
[309782873,1704117063596,-500.0,0.00036712,2]
[309782874,1704117063605,-500.0,0.00036712,2]
[309782875,1704117063615,-500.0,0.00036712,2]
[309782876,1704117063625,-500.0,0.00036712,2]
[309782877,1704117063634,-500.0,0.00036712,2]
[309782878,1704117063645,-500.0,0.00036712,2]
[309782879,1704117063656,-1292.27,0.00036712,2]
[309782880,1704117063666,-518.93,0.00036712,2]
[309782881,1704117063676,-500.0,0.00036712,2]
[309782882,1704117063688,-500.0,0.00036712,2]
[309782883,1704117063698,-537.26,0.00036712,2]
[309782884,1704117063708,-500.0,0.00036712,2]
[309782885,1704117063719,-500.0,0.00036712,2]
[309782886,1704117063730,-500.0,0.00036712,2]
[309782887,1704117063739,-500.0,0.00036712,2]
[309782888,1704117063749,-222.22222,0.00036798,4]
[309782889,1704117063759,-500.0,0.00036798,2]
[309782890,1704117063769,-500.0,0.00036799,2]
[309782891,1704117063780,-500.0,0.00036799,2]
[309782892,1704117063789,-500.0,0.00036799,2]
[309782893,1704117063798,-456.96,0.00036799,2]
[309782894,1704117063808,-500.0,0.00036799,2]
[309782895,1704117063818,-1013.39,0.00036799,2]
[309782896,1704117063827,-1013.39,0.00036799,2]
[309782897,1704117063836,-1013.39,0.00036799,2]
[309782898,1704117063848,-647881.71845621,0.000368,5]
[309782899,1704117063860,-205.0,0.00036879,19]
[309782900,1704117063869,-222.22222,0.00036898,4]
[309782901,1704117063879,-8359.43465934,0.000369,4]
[309782902,1704117064011,-500.0,0.00036986,2]
[309782903,1704117064021,-500.0,0.00036986,2]
[309782904,1704117064030,-288.35,0.00036986,2]
[309782905,1704117064040,-500.0,0.00036986,2]
[309782906,1704117064049,-763.87,0.00036986,2]
[309782907,1704117064059,-638.97,0.00036986,2]
[309782908,1704117064068,-500.0,0.00036986,2]
[309782909,1704117064078,-500.0,0.00036986,2]
[309782910,1704117064089,-500.0,0.00036986,2]
[309782911,1704117064099,-1870.25,0.00036986,2]
[309782912,1704117064109,-500.0,0.00036986,2]
[309782913,1704117064118,-500.0,0.00036986,2]
[309782914,1704117064128,-497.86,0.00036986,2]
[309782915,1704117064138,-500.0,0.00036986,2]
[309782916,1704117064148,-500.0,0.00036986,2]
[309782917,1704117064159,-500.0,0.00036986,2]
[309782918,1704117064168,-500.0,0.00036986,2]
[309782919,1704117064177,-500.0,0.00036986,2]
[309782920,1704117064187,-500.0,0.00036986,2]
[309782921,1704117064207,-543.03,0.00036986,2]
[309782922,1704117064219,-500.0,0.00036986,2]
[309782923,1704117064229,-752.72,0.00036986,2]
[309782924,1704117064239,-500.0,0.00036986,2]
[309782925,1704117064249,-500.0,0.00036986,2]
[309782926,1704117064260,-491.05,0.00036986,2]
[309782927,1704117064271,-500.0,0.00036986,2]
[309782928,1704117064281,-500.0,0.00036986,2]
[309782929,1704117064292,-500.0,0.00036986,2]
[309782930,1704117064303,-500.0,0.00036986,2]
[309782931,1704117064313,-500.0,0.00036986,2]
[309782932,1704117064323,-601.81,0.00036986,2]
[309782933,1704117064334,-500.0,0.00036986,2]
[309782934,1704117064346,-500.0,0.00036986,2]
[309782935,1704117064356,-500.0,0.00036986,2]
[309782936,1704117064367,-178.32,0.00036986,2]
[309782937,1704117064378,-500.0,0.00036986,2]
[309782938,1704117064388,-367.64815606,0.00036986,2]
[309782939,1704117064397,-732.99,0.00036986,2]
[309782940,1704117064409,-500.0,0.00036986,2]
[309782941,1704117064419,-500.0,0.00036986,2]
[309782942,1704117064432,-500.0,0.00036986,2]
[309782943,1704117064442,-500.0,0.00036986,2]
[309782944,1704117064453,-500.0,0.00036986,2]
[309782945,1704117064466,-500.0,0.00036986,2]
[309782946,1704117064476,-500.0,0.00036986,2]
[309782947,1704117064486,-500.0,0.00036986,2]
[309782948,1704117064498,-1348.23,0.00036986,2]
[309782949,1704117064508,-566.08,0.00036986,2]
[309782950,1704117064517,-237.36,0.00036986,2]
[309782951,1704117064527,-500.0,0.00036986,2]
[309782952,1704117064537,-500.0,0.00036986,2]
[309782953,1704117064549,-500.0,0.00036986,5]
[309782954,1704117064561,-500.0,0.00036986,2]
[309782955,1704117064576,-500.0,0.00036986,2]
[309782956,1704117064586,-340.45,0.00036986,2]
[309782957,1704117064596,-500.0,0.00036986,2]
[309782958,1704117064606,-185.48,0.00036986,2]
[309782959,1704117064617,-500.0,0.00036986,2]
[309782960,1704117064628,-500.0,0.00036986,2]
[309782961,1704117064638,-500.0,0.00036986,2]
[309782962,1704117064648,-500.0,0.00036986,2]
[309782963,1704117064658,-1292.27,0.00036986,2]
[309782964,1704117064668,-518.93,0.00036986,2]
[309782965,1704117064678,-500.0,0.00036986,2]
[309782966,1704117064688,-374.95,0.00036986,2]
[309782967,1704117064697,-500.0,0.00036986,2]
[309782968,1704117064707,-500.0,0.00036986,2]
[309782969,1704117064718,-500.0,0.00036986,2]
[309782970,1704117064727,-500.0,0.00036986,2]
[309782971,1704117064737,-1000.0,0.00036986,3]
[309782972,1704117064746,-1000.0,0.00036986,3]
[309782973,1704117064756,-1000.0,0.00036986,3]
[309782974,1704117064766,-1000.0,0.00036986,3]
[309782975,1704117064777,-1000.0,0.00036986,3]
[309782976,1704117064786,-1000.0,0.00036986,3]
[309782977,1704117064797,-1000.0,0.00036986,3]
[309782978,1704117064806,-1000.0,0.00036986,3]
[309782979,1704117064815,-1000.0,0.00036986,3]
[309782980,1704117064826,-1000.0,0.00036986,3]
[309782981,1704117064836,-1000.0,0.00036986,3]
[309782982,1704117064847,-1000.0,0.00036986,3]
[309782983,1704117064856,-1000.0,0.00036986,3]
[309782984,1704117064866,-625.0,0.00036986,3]
[309782985,1704117064878,-222.22222,0.00036998,4]
[309782986,1704117064888,-179.21497388,0.00037,4]
[309782987,1704117064898,-666.13983086,0.00037,7]
[309782988,1704117064908,-700.0,0.00037,3]
[309782989,1704117064918,-324.29025165,0.00037098,2]
[309782990,1704117064929,-222.22222,0.00037098,6]
[309782991,1704117064939,-153.92,0.00037111,2]
[309782992,1704117064949,-333.33333,0.00037198,6]
[309782993,1704117064958,-174.44539591,0.000372,2]
[309782994,1704117064969,-1000.0,0.00037215,2]
[309782995,1704117064980,-500.0,0.0003726,2]
[309782996,1704117064991,-500.0,0.0003726,2]
[309782997,1704117065000,-500.0,0.0003726,2]
[309782998,1704117065011,-763.87,0.0003726,2]
[309782999,1704117065021,-638.97,0.0003726,2]
[309783000,1704117065031,-500.0,0.0003726,2]
[309783001,1704117065042,-524.71,0.0003726,2]
[309783002,1704117065053,-500.0,0.0003726,2]
[309783003,1704117065064,-1870.25,0.0003726,2]
[309783004,1704117065075,-500.0,0.0003726,2]
[309783005,1704117065085,-500.0,0.0003726,2]
[309783006,1704117065098,-500.0,0.0003726,2]
[309783007,1704117065108,-500.0,0.0003726,2]
[309783008,1704117065118,-500.0,0.0003726,2]
[309783009,1704117065128,-500.0,0.0003726,2]
[309783010,1704117065138,-500.0,0.0003726,2]
[309783011,1704117065148,-500.0,0.0003726,2]
[309783012,1704117065158,-543.03,0.0003726,2]
[309783013,1704117065169,-500.0,0.0003726,2]
[309783014,1704117065179,-752.72,0.0003726,2]
[309783015,1704117065189,-500.0,0.0003726,2]
[309783016,1704117065199,-500.0,0.0003726,2]
[309783017,1704117065209,-500.0,0.0003726,2]
[309783018,1704117065219,-500.0,0.0003726,2]
[309783019,1704117065230,-500.0,0.0003726,2]
[309783020,1704117065240,-500.0,0.0003726,2]
[309783021,1704117065250,-500.0,0.0003726,2]
[309783022,1704117065263,-500.0,0.0003726,2]
[309783023,1704117065273,-500.0,0.0003726,2]
[309783024,1704117065284,-500.0,0.0003726,2]
[309783025,1704117065293,-500.0,0.0003726,2]
[309783026,1704117065303,-732.99,0.0003726,2]
[309783027,1704117065314,-582.57,0.0003726,2]
[309783028,1704117065324,-393.03,0.0003726,2]
[309783029,1704117065334,-500.0,0.0003726,2]
[309783030,1704117065345,-500.0,0.0003726,2]
[309783031,1704117065355,-500.0,0.0003726,2]
[309783032,1704117065364,-500.0,0.0003726,2]
[309783033,1704117065375,-500.0,0.0003726,2]
[309783034,1704117065385,-500.0,0.0003726,2]
[309783035,1704117065396,-1348.23,0.0003726,2]
[309783036,1704117065406,-500.0,0.0003726,2]
[309783037,1704117065417,-500.0,0.0003726,2]
[309783038,1704117065427,-500.0,0.0003726,5]
[309783039,1704117065436,-500.0,0.0003726,2]
[309783040,1704117065446,-500.0,0.0003726,2]
[309783041,1704117065456,-500.0,0.0003726,2]
[309783042,1704117065467,-500.0,0.0003726,2]
[309783043,1704117065477,-500.0,0.0003726,2]
[309783044,1704117065488,-500.0,0.0003726,2]
[309783045,1704117065498,-500.0,0.0003726,2]
[309783046,1704117065508,-1292.27,0.0003726,2]
[309783047,1704117065517,-518.93,0.0003726,2]
[309783048,1704117065527,-500.0,0.0003726,2]
[309783049,1704117065537,-500.0,0.0003726,2]
[309783050,1704117065547,-500.0,0.0003726,2]
[309783051,1704117065557,-500.0,0.0003726,2]
[309783052,1704117065567,-631.32,0.0003726,2]
[309783053,1704117065578,-333.33333,0.00037298,6]
[309783054,1704117065588,-153.21135159,0.00037352,28]
[309783055,1704117065598,-500.0,0.00037356,2]
[309783056,1704117065608,-190829.9744468,0.00037397,2]
[309783057,1704117065619,-333.33333,0.00037398,6]
[309783058,1704117065630,-443.04,0.00037439,2]
[309783059,1704117065640,-333.33333,0.00037498,6]
[309783060,1704117065649,-635.72,0.00037531,2]
[309783061,1704117065660,-500.0,0.00037534,2]
[309783062,1704117065671,-500.0,0.00037534,2]
[309783063,1704117065680,-500.0,0.00037534,2]
[309783064,1704117065690,-763.87,0.00037534,2]
[309783065,1704117065700,-638.97,0.00037534,2]
[309783066,1704117065710,-251.1,0.00037534,2]
[309783067,1704117065720,-500.0,0.00037534,2]
[309783068,1704117065729,-1870.25,0.00037534,2]
[309783069,1704117065739,-500.0,0.00037534,2]
[309783070,1704117065749,-500.0,0.00037534,2]
[309783071,1704117065760,-500.0,0.00037534,2]
[309783072,1704117065770,-500.0,0.00037534,2]
[309783073,1704117065780,-500.0,0.00037534,2]
[309783074,1704117065790,-500.0,0.00037534,2]
[309783075,1704117065800,-500.0,0.00037534,2]
[309783076,1704117065810,-500.0,0.00037534,2]
[309783077,1704117065821,-543.03,0.00037534,2]
[309783078,1704117065833,-568.27,0.00037534,2]
[309783079,1704117065843,-752.72,0.00037534,2]
[309783080,1704117065853,-500.0,0.00037534,2]
[309783081,1704117065863,-558.00358821,0.00037534,2]
[309783082,1704117065873,-240.18,0.00037534,2]
[309783083,1704117065883,-500.0,0.00037534,2]
[309783084,1704117065893,-500.0,0.00037534,2]
[309783085,1704117065903,-500.0,0.00037534,2]
[309783086,1704117065914,-500.0,0.00037534,2]
[309783087,1704117065924,-500.0,0.00037534,2]
[309783088,1704117065934,-500.0,0.00037534,2]
[309783089,1704117065944,-357.63,0.00037534,2]
[309783090,1704117065954,-460.28,0.00037534,2]
[309783091,1704117065964,-732.99,0.00037534,2]
[309783092,1704117065974,-500.0,0.00037534,2]
[309783093,1704117065984,-332.3,0.00037534,2]
[309783094,1704117065994,-500.0,0.00037534,2]
[309783095,1704117066005,-500.0,0.00037534,2]
[309783096,1704117066015,-500.0,0.00037534,2]
[309783097,1704117066025,-500.0,0.00037534,2]
[309783098,1704117066037,-1348.23,0.00037534,2]
[309783099,1704117066048,-500.0,0.00037534,2]
[309783100,1704117066058,-270.91,0.00037534,2]
[309783101,1704117066069,-500.0,0.00037534,5]
[309783102,1704117066079,-500.0,0.00037534,2]
[309783103,1704117066091,-500.0,0.00037534,2]
[309783104,1704117066101,-500.0,0.00037534,2]
[309783105,1704117066113,-500.0,0.00037534,2]
[309783106,1704117066124,-500.0,0.00037534,2]
[309783107,1704117066135,-500.0,0.00037534,2]
[309783108,1704117066147,-500.0,0.00037534,2]
[309783109,1704117066161,-1292.27,0.00037534,2]
[309783110,1704117066173,-518.93,0.00037534,2]
[309783111,1704117066184,-500.0,0.00037534,2]
[309783112,1704117066195,-639.86,0.00037534,2]
[309783113,1704117066206,-500.0,0.00037534,2]
[309783114,1704117066217,-500.0,0.00037534,2]
[309783115,1704117066228,-167.0,0.00037542,2]
[309783116,1704117066239,-333.33333,0.00037598,6]
[309783117,1704117066250,-333.33333,0.00037698,6]
[309783118,1704117066261,-5132.56283437,0.00037774,11]
[309783119,1704117066273,-930.3125847,0.00037777,2]
[309783120,1704117066284,-155.0,0.00037777,4]
[309783121,1704117066296,-335.444,0.00037777,4]
[309783122,1704117066307,-695.09094292,0.00037777,60]
[309783123,1704117066318,-223.55688686,0.00037777,4]
[309783124,1704117066330,-965.97772008,0.00037777,4]
[309783125,1704117066343,-167.2970521,0.00037777,4]
[309783126,1704117066354,-11626.39827027,0.0003778,4]
[309783127,1704117066365,-333.33333,0.00037798,6]
[309783128,1704117066376,-500.0,0.00037808,2]
[309783129,1704117066386,-500.0,0.00037808,2]
[309783130,1704117066397,-500.0,0.00037808,2]
[309783131,1704117066408,-763.87,0.00037808,2]
[309783132,1704117066419,-638.97,0.00037808,2]
[309783133,1704117066568,-500.0,0.00037808,2]
[309783134,1704117066579,-1870.25,0.00037808,2]
[309783135,1704117066590,-500.0,0.00037808,2]
[309783136,1704117066600,-500.0,0.00037808,2]
[309783137,1704117066611,-500.0,0.00037808,2]
[309783138,1704117066621,-500.0,0.00037808,2]
[309783139,1704117066630,-500.0,0.00037808,2]
[309783140,1704117066640,-330.05734741,0.00037808,2]
[309783141,1704117066650,-318.54,0.00037808,2]
[309783142,1704117066660,-500.0,0.00037808,2]
[309783143,1704117066669,-543.03,0.00037808,2]
[309783144,1704117066679,-752.72,0.00037808,2]
[309783145,1704117066689,-500.0,0.00037808,2]
[309783146,1704117066699,-500.0,0.00037808,2]
[309783147,1704117066709,-500.0,0.00037808,2]
[309783148,1704117066720,-500.0,0.00037808,2]
[309783149,1704117066730,-500.0,0.00037808,2]
[309783150,1704117066741,-500.0,0.00037808,2]
[309783151,1704117066750,-500.0,0.00037808,2]
[309783152,1704117066761,-732.99,0.00037808,2]
[309783153,1704117066771,-387.45,0.00037808,2]
[309783154,1704117066781,-500.0,0.00037808,2]
[309783155,1704117066790,-242.12,0.00037808,2]
[309783156,1704117066800,-500.0,0.00037808,2]
[309783157,1704117066810,-500.0,0.00037808,2]
[309783158,1704117066821,-1348.23,0.00037808,2]
[309783159,1704117066831,-500.0,0.00037808,2]
[309783160,1704117066841,-500.0,0.00037808,5]
[309783161,1704117066852,-500.0,0.00037808,2]
[309783162,1704117066861,-500.0,0.00037808,2]
[309783163,1704117066871,-500.0,0.00037808,2]
[309783164,1704117066881,-500.0,0.00037808,2]
[309783165,1704117066891,-500.0,0.00037808,2]
[309783166,1704117066901,-500.0,0.00037808,2]
[309783167,1704117066910,-590.27,0.00037808,2]
[309783168,1704117066920,-1292.27,0.00037808,2]
[309783169,1704117066930,-518.93,0.00037808,2]
[309783170,1704117066940,-500.0,0.00037808,2]
[309783171,1704117066951,-500.0,0.00037808,2]
[309783172,1704117066961,-265.96,0.00037808,2]
[309783173,1704117066971,-150.72,0.00037842,2]
[309783174,1704117066982,-997.47505243,0.0003787,2]
[309783175,1704117066993,-540.01254622,0.0003787,2]
[309783176,1704117067003,-4611.17826287,0.00037879,2]
[309783177,1704117067015,-333.33333,0.00037898,6]
[309783178,1704117067025,-500.0,0.00037899,2]
[309783179,1704117067035,-500.0,0.00037899,2]
[309783180,1704117067051,-1013.39,0.00037899,2]
[309783181,1704117067061,-1013.39,0.00037899,2]
[309783182,1704117067072,-1013.39,0.00037899,2]
[309783183,1704117067088,-1013.39,0.00037899,2]
[309783184,1704117067099,-1013.49269573,0.00037899,2]
[309783185,1704117067112,-646693.056134,0.000379,3]
[309783186,1704117067121,-221.5138855,0.00037973,9]
[309783187,1704117067131,-384.38337175,0.00037973,9]
[309783188,1704117067141,-259.74607972,0.00037973,9]
[309783189,1704117067158,-228.06829577,0.00037973,9]
[309783190,1704117067168,-246.9050385,0.00037973,9]
[309783191,1704117067178,-347.07511712,0.00037973,9]
[309783192,1704117067189,-167.28331721,0.00037973,9]
[309783193,1704117067199,-333.33333,0.00037998,6]